fUSD/lending_fUSD_20240502
["ID","MTS","AMOUNT","RATE_DAILY","PERIOD"]
[325272616,1714677039268,-154.05599212,0.00024345,2]
[325272617,1714677039278,-570.68985906,0.00024348,2]
[325272618,1714677039287,-570.68985906,0.00024348,2]
[325272619,1714677039297,-570.68985906,0.00024348,2]
[325272620,1714677039307,-5000.0,0.00024358,2]
[325272621,1714677039317,-570.68985906,0.00024585,2]
[325272622,1714677039326,-167.25261569,0.00024595,2]
[325272623,1714677039336,-154.56843516,0.0002467,2]
[325272624,1714677039345,-152.41856812,0.00024713,2]
[325272625,1714677039355,-157.9037874,0.0002474,2]
[325272626,1714677039366,-167.25261569,0.00024881,2]
[325272627,1714677039375,-272.20242189,0.00024956,2]
[325272628,1714677039386,-570.68985906,0.00024964,2]
[325272629,1714677039395,-276.03576102,0.00024966,2]
[325272630,1714677039405,-154.56843516,0.00024968,2]
[325272631,1714677039415,-276.03576102,0.00024974,2]
[325272632,1714677039425,-153.33265497,0.00025051,2]
[325272633,1714677039434,-154.4340925,0.0002512,2]
[325272634,1714677039444,-706.20038689,0.00025206,2]
[325272635,1714677039454,-154.56843516,0.00025211,2]
[325272636,1714677039465,-570.68985906,0.00025217,2]
[325272637,1714677039476,-167.25261569,0.00025219,2]
[325272638,1714677039487,-158.39064362,0.00025227,2]
[325272639,1714677039497,-272.20242189,0.0002524,2]
[325272640,1714677039506,-276.03576102,0.00025313,2]
[325272641,1714677039516,-570.68985906,0.00025316,2]
[325272642,1714677039525,-1896.82,0.00025326,3]
[325272643,1714677039617,-948.42,0.00025326,3]
[325272644,1714677039627,-570.68985906,0.00025326,2]
[325272645,1714677039638,-570.68985906,0.00025326,2]
[325272646,1714677039647,-570.68985906,0.00025326,2]
[325272647,1714677039657,-3793.66,0.00025336,3]
[325272648,1714677039666,-276.03576102,0.00025402,2]
[325272649,1714677039676,-706.20038689,0.00025448,2]
[325272650,1714677039685,-157.9037874,0.00025452,2]
[325272651,1714677039694,-570.68985906,0.00025692,2]
[325272652,1714677039703,-154.56843516,0.00025702,2]
[325272653,1714677039713,-155.51549721,0.00025705,2]
[325272654,1714677039722,-168.65072258,0.00025749,2]
[325272655,1714677039732,-166.63741744,0.00025752,2]
[325272656,1714677039741,-706.20038689,0.00025766,2]
[325272657,1714677039750,-154.56843516,0.0002585,2]
[325272658,1714677039760,-570.68985906,0.00025964,2]
[325272659,1714677039769,-272.20242189,0.00025974,2]
[325272660,1714677039779,-650.0,0.00026,3]
[325272661,1714677039788,-276.03576102,0.00026023,2]
[325272662,1714677039797,-158.6059428,0.00026173,2]
[325272663,1714677039806,-154.56843516,0.00026174,2]
[325272664,1714677039816,-570.68985906,0.0002623,2]
[325272665,1714677039826,-153.6354087,0.0002624,2]
[325272666,1714677039835,-570.68985906,0.00026281,2]
[325272667,1714677039845,-570.68985906,0.00026281,2]
[325272668,1714677039854,-570.68985906,0.00026281,2]
[325272669,1714677039863,-5000.0,0.00026291,2]
[325272670,1714677039872,-706.20038689,0.0002641,2]
[325272671,1714677039882,-570.68985906,0.00026421,2]
[325272672,1714677039892,-153.90874374,0.00026422,2]
[325272673,1714677039901,-272.20242189,0.00026431,2]
[325272674,1714677039911,-276.03576102,0.00026566,2]
[325272675,1714677039921,-272.20242189,0.00026593,2]
[325272676,1714677039930,-152.62499916,0.00026715,2]
[325272677,1714677039939,-570.68985906,0.00026922,2]
[325272678,1714677039949,-706.20038689,0.00026932,2]
[325272679,1714677039958,-150.58249624,0.00026971,2]
[325272680,1714677039967,-157.9037874,0.00026975,2]
[325272681,1714677039977,-272.20242189,0.00026987,2]
[325272682,1714677039987,-167.25261569,0.00027091,2]
[325272683,1714677039996,-706.20038689,0.00027115,2]
[325272684,1714677040005,-570.68985906,0.00027118,2]
[325272685,1714677040015,-157.9037874,0.00027128,2]
[325272686,1714677040024,-570.68985906,0.00027326,2]
[325272687,1714677040034,-1482.725888,0.00027336,2]
[325272688,1714677040043,-1228.537542,0.00027336,2]
[325272689,1714677040053,-154.05599212,0.00027363,2]
[325272690,1714677040063,-570.68985906,0.00027387,2]
[325272691,1714677040075,-570.68985906,0.00027441,2]
[325272692,1714677040084,-272.20242189,0.00027451,2]
[325272693,1714677040093,-171.28,0.00027509,2]
[325272694,1714677040102,-154.59820623,0.0002753,2]
[325272695,1714677040112,-302.321818,0.000276,2]
[325272696,1714677040121,-272.20242189,0.00027622,2]
[325272697,1714677040131,-202.55,0.00027714,2]
[325272698,1714677040142,-570.68985906,0.00027802,2]
[325272699,1714677040152,-706.20038689,0.00027812,2]
[325272700,1714677040161,-272.20242189,0.00027816,2]
[325272701,1714677040170,-706.20038689,0.00027903,2]
[325272702,1714677040180,-167.25261569,0.00027919,2]
[325272703,1714677040189,-570.68985906,0.0002799,2]
[325272704,1714677040198,-700.0,0.00028,3]
[325272705,1714677040207,-150.58249624,0.00028198,2]
[325272706,1714677040217,-151.58835084,0.00028241,2]
[325272707,1714677040227,-154.59820623,0.00028254,2]
[325272708,1714677040237,-205.068925,0.00028407,2]
[325272709,1714677040246,-570.68985906,0.00028429,2]
[325272710,1714677040255,-276.03576102,0.00028439,2]
[325272711,1714677040264,-276.03576102,0.00028472,2]
[325272712,1714677040274,-256.3458,0.0002848,2]
[325272713,1714677040283,-570.68985906,0.00028522,2]
[325272714,1714677040292,-1862.83673623,0.00028532,2]
[325272715,1714677040301,-570.68985906,0.0002857,2]
[325272716,1714677040311,-570.68985906,0.0002857,2]
[325272717,1714677040320,-570.68985906,0.0002857,2]
[325272718,1714677040329,-570.68985906,0.0002857,2]
[325272719,1714677040338,-570.68985906,0.0002857,2]
[325272720,1714677040347,-570.68985906,0.0002857,2]
[325272721,1714677040357,-570.68985906,0.0002857,2]
[325272722,1714677040366,-10000.0,0.0002858,2]
[325272723,1714677040375,-186.8,0.00028585,120]
[325272724,1714677040384,-706.20038689,0.00028611,2]
[325272725,1714677040396,-570.68985906,0.00028616,2]
[325272726,1714677040407,-570.68985906,0.00028616,2]
[325272727,1714677040416,-570.68985906,0.00028616,2]
[325272728,1714677040425,-2049.8876,0.00028626,2]
[325272729,1714677040435,-2470.5981,0.00028626,2]
[325272730,1714677040444,-272.20242189,0.00028654,2]
[325272731,1714677040455,-570.68985906,0.00028679,2]
[325272732,1714677040465,-154.4340925,0.00028689,2]
[325272733,1714677040475,-167.25261569,0.00028702,2]
[325272734,1714677040484,-153.33265497,0.00028704,2]
[325272735,1714677040493,-272.20242189,0.00028868,2]
[325272736,1714677040502,-167.25261569,0.0002889,2]
[325272737,1714677040511,-570.68985906,0.0002898,2]
[325272738,1714677040520,-1239.70916771,0.0002899,7]
[325272739,1714677040530,-150.58249624,0.00029004,2]
[325272740,1714677040539,-570.68985906,0.00029105,2]
[325272741,1714677040548,-570.68985906,0.00029105,2]
[325272742,1714677040557,-570.68985906,0.00029105,2]
[325272743,1714677040566,-570.68985906,0.00029105,2]
[325272744,1714677040575,-570.68985906,0.00029105,2]
[325272745,1714677040584,-570.68985906,0.00029105,2]
[325272746,1714677040594,-570.68985906,0.00029105,2]
[325272747,1714677040603,-570.68985906,0.00029105,2]
[325272748,1714677040611,-6457.223,0.00029115,2]
[325272749,1714677040621,-5899.0,0.00029115,2]
[325272750,1714677040630,-2291.0,0.00029115,2]
[325272751,1714677040641,-570.68985906,0.00029185,2]
[325272752,1714677040651,-706.20038689,0.00029195,2]
[325272753,1714677040660,-177.08566445,0.00029214,2]
[325272754,1714677040669,-167.25261569,0.00029276,2]
[325272755,1714677040678,-154.4340925,0.0002928,2]
[325272756,1714677040687,-154.4340925,0.00029298,2]
[325272757,1714677040696,-167.25261569,0.00029338,2]
[325272758,1714677040705,-171.20102462,0.00029344,2]
[325272759,1714677040715,-272.20242189,0.00029375,2]
[325272760,1714677040724,-570.68985906,0.00029413,2]
[325272761,1714677040733,-272.20242189,0.00029423,2]
[325272762,1714677040743,-276.03576102,0.00029502,2]
[325272763,1714677040753,-276.03576102,0.00029587,2]
[325272764,1714677040762,-158.39064362,0.00029608,2]
[325272765,1714677040771,-167.25261569,0.00029638,2]
[325272766,1714677040781,-570.68985906,0.00029671,2]
[325272767,1714677040790,-706.20038689,0.00029681,2]
[325272768,1714677040799,-570.68985906,0.00029851,2]
[325272769,1714677040809,-5100.57912192,0.00029861,2]
[325272770,1714677040818,-153.90874374,0.00029873,2]
[325272771,1714677040828,-2500.0,0.0002989,2]
[325272772,1714677040838,-163.6909,0.00029936,2]
[325272773,1714677040847,-3504.8607,0.00029936,2]
[325272774,1714677040856,-4875.4922,0.00029936,2]
[325272775,1714677040866,-1000.0,0.00029936,2]
[325272776,1714677040875,-167.2527065,0.00029936,2]
[325272777,1714677040884,-155.0,0.00029999,2]
[325272778,1714677040895,-163.37849829,0.00029999,2]
[325272779,1714677040906,-50000.0,0.0003,10]
[325272780,1714677040915,-50000.0,0.0003,20]
[325272781,1714677040925,-65519.97565305,0.0003,7]
[325272782,1714677040941,-500.0,0.0003,7]
[325272783,1714677041487,-474.2,0.00025316,3]
[325272784,1714677041496,-570.68985906,0.00029851,2]
[325272785,1714677041506,-4841.68101003,0.0003,7]
[325272786,1714677041515,-152.41856812,0.00030023,7]
[325272787,1714677041524,-158.5390509,0.00030026,2]
[325272788,1714677041533,-337.07151189,0.00030034,4]
[325272789,1714677041545,-202.59134219,0.00030034,4]
[325272790,1714677041555,-194.53284169,0.00030035,4]
[325272791,1714677041564,-512.1768,0.00030036,2]
[325272792,1714677041573,-781.8025,0.00030036,2]
[325272793,1714677041582,-26883.598,0.00030036,2]
[325272794,1714677041592,-42477.29851618,0.00030036,2]
[325272795,1714677041603,-387.2,0.00030036,2]
[325272796,1714677041615,-18072.6546,0.00030036,2]
[325272926,1714677044219,-1451.8542977,0.0002858,2]
[325272927,1714677044231,-3741.84452218,0.0002858,2]
[325272928,1714677044244,-4806.30118012,0.0002858,2]
[325272929,1714677044254,-2500.0,0.00028759,2]
[325272930,1714677044264,-570.68985906,0.00029851,2]
[325272931,1714677044274,-570.68985906,0.0002988,2]
[325272932,1714677044284,-570.68985906,0.0002988,2]
[325272933,1714677044304,-570.68985906,0.00029926,2]
[325272934,1714677044327,-570.68985906,0.00029926,2]
[325272935,1714677044347,-570.68985906,0.00029926,2]
[325272936,1714677044368,-570.68985906,0.00029926,2]
[325272938,1714677044391,-570.68985906,0.00029926,2]
[325272940,1714677044410,-570.68985906,0.00029926,2]
[325272942,1714677044433,-570.68985906,0.0002999,2]
[325272943,1714677044459,-570.68985906,0.0002999,2]
[325272944,1714677044469,-570.68985906,0.0002999,2]
[325272945,1714677044480,-570.68985906,0.0002999,2]
[325272946,1714677044489,-570.68985906,0.0002999,2]
[325272947,1714677044499,-570.68985906,0.0002999,2]
[325272948,1714677044508,-570.68985906,0.0002999,2]
[325272949,1714677044518,-570.68985906,0.0002999,2]
[325272950,1714677044528,-570.68985906,0.0002999,2]
[325272951,1714677044537,-570.68985906,0.0002999,2]
[325272952,1714677044547,-570.68985906,0.0002999,2]
[325272953,1714677044558,-570.68985906,0.0002999,2]
[325272954,1714677044568,-570.68985906,0.0002999,2]
[325272955,1714677044577,-570.68985906,0.0002999,2]
[325272956,1714677044587,-570.68985906,0.0002999,2]
[325272957,1714677044596,-570.68985906,0.0002999,2]
[325272958,1714677044606,-570.68985906,0.0002999,2]
[325272959,1714677044615,-570.68985906,0.0002999,2]
[325272960,1714677044625,-570.68985906,0.0002999,2]
[325272961,1714677044635,-184062.84688382,0.00030036,2]
[325272962,1714677044646,-14952.3709,0.00030036,3]
[325272963,1714677044655,-1000.0,0.00030036,2]
[325272965,1714677044665,-180.7562889,0.00030036,2]
[325272966,1714677044674,-2725.04363172,0.00030036,2]
[325272968,1714677044684,-158.5390509,0.00030126,2]
[325272970,1714677044694,-317.50862952,0.00030134,4]
[325272971,1714677044703,-470.28425654,0.00030134,4]
[325272972,1714677044713,-363.11662395,0.00030135,4]
[325272973,1714677044722,-324.01808978,0.00030135,4]
[325272974,1714677044732,-150.0,0.00030135,2]
[325272975,1714677044742,-150.0,0.00030135,2]
[325272976,1714677044751,-2105723.87748625,0.00030136,7]
[325272977,1714677044761,-500.0,0.00030136,2]
[325272978,1714677044770,-551.20671075,0.00030136,2]
[325272979,1714677044780,-500.0,0.00030136,2]
[325272980,1714677044789,-502.29524662,0.00030136,2]
[325272981,1714677044799,-500.62693502,0.00030136,2]
[325272982,1714677044809,-502.97778467,0.00030136,2]
[325272983,1714677044819,-510.4421716,0.00030136,2]
[325272984,1714677044828,-500.0,0.00030136,2]
[325272985,1714677044838,-500.0,0.00030136,2]
[325272986,1714677044849,-500.0,0.00030136,2]
[325272987,1714677044859,-440.49756078,0.00030136,2]
[325272988,1714677044868,-342.05384748,0.00030136,2]
[325272989,1714677044878,-500.0,0.00030136,2]
[325272990,1714677044888,-500.0,0.00030136,2]
[325272992,1714677044897,-500.0,0.00030136,2]
[325272994,1714677044907,-368.09216552,0.00030136,2]
[325272995,1714677044916,-500.0,0.00030136,2]
[325272996,1714677044926,-500.0,0.00030136,2]
[325272997,1714677044935,-500.0,0.00030136,2]
[325272998,1714677044944,-507.85597268,0.00030136,2]
[325272999,1714677044954,-499.78745882,0.00030136,2]
[325273000,1714677044963,-500.66637872,0.00030136,2]
[325273001,1714677044974,-501.06514662,0.00030136,2]
[325273003,1714677044983,-500.0,0.00030136,2]
[325273005,1714677044993,-501.01745197,0.00030136,2]
[325273007,1714677045003,-501.62932806,0.00030136,2]
[325273009,1714677045013,-229.60960134,0.00030136,2]
[325273011,1714677045022,-254.37935934,0.00030136,2]
[325273013,1714677045032,-500.0,0.00030136,2]
[325273015,1714677045041,-502.22133947,0.00030136,2]
[325273017,1714677045051,-500.0,0.00030136,2]
[325273019,1714677045061,-500.0,0.00030136,2]
[325273021,1714677045072,-809.73,0.00030136,2]
[325273023,1714677045083,-500.0,0.00030136,2]
[325273025,1714677045094,-500.7977955,0.00030136,2]
[325273027,1714677045103,-500.0,0.00030136,2]
[325273030,1714677045114,-500.0,0.00030136,2]
[325273032,1714677045124,-600.5436013,0.00030136,2]
[325273034,1714677045134,-648.32,0.00030136,2]
[325273036,1714677045144,-500.0,0.00030136,2]
[325273038,1714677045156,-500.79982628,0.00030136,2]
[325273040,1714677045166,-500.0,0.00030136,2]
[325273042,1714677045176,-500.0,0.00030136,2]
[325273044,1714677045186,-500.0,0.00030136,2]
[325273046,1714677045196,-500.0,0.00030136,2]
[325273048,1714677045206,-1082.24,0.00030136,2]
[325273049,1714677045217,-500.0,0.00030136,2]
[325273050,1714677045228,-500.0,0.00030136,2]
[325273051,1714677045237,-500.0,0.00030136,2]
[325273052,1714677045247,-550.09211423,0.00030136,2]
[325273053,1714677045257,-500.0,0.00030136,2]
[325273054,1714677045267,-774.67,0.00030136,2]
[325273055,1714677045278,-627.04858216,0.00030136,2]
[325273056,1714677045288,-500.0,0.00030136,2]
[325273057,1714677045298,-500.0,0.00030136,2]
[325273058,1714677045308,-500.0,0.00030136,2]
[325273059,1714677045317,-500.0,0.00030136,2]
[325273060,1714677045327,-500.0,0.00030136,2]
[325273061,1714677045336,-500.0,0.00030136,2]
[325273062,1714677045346,-500.0,0.00030136,2]
[325273063,1714677045358,-500.65148502,0.00030136,2]
[325273064,1714677045368,-515.08618099,0.00030136,2]
[325273065,1714677045378,-500.0,0.00030136,2]
[325273066,1714677045388,-500.0,0.00030136,2]
[325273067,1714677045398,-500.0,0.00030136,2]
[325273068,1714677045407,-500.0,0.00030136,2]
[325273069,1714677045418,-500.0,0.00030136,2]
[325273070,1714677045429,-500.0,0.00030136,2]
[325273071,1714677045440,-500.0,0.00030136,2]
[325273072,1714677045451,-572.39,0.00030136,2]
[325273073,1714677045462,-503.38605054,0.00030136,2]
[325273074,1714677045473,-500.0,0.00030136,2]
[325273075,1714677045484,-961.49,0.00030136,2]
[325273076,1714677045494,-500.0,0.00030136,2]
[325273077,1714677045504,-500.0,0.00030136,2]
[325273078,1714677045513,-500.0,0.00030136,2]
[325273079,1714677045524,-500.0,0.00030136,2]
[325273080,1714677045534,-500.0,0.00030136,2]
[325273081,1714677045545,-500.0,0.00030136,2]
[325273082,1714677045556,-500.0,0.00030136,2]
[325273083,1714677045566,-500.0,0.00030136,2]
[325273084,1714677045576,-500.0,0.00030136,2]
[325273085,1714677045587,-661.95,0.00030136,2]
[325273086,1714677045597,-500.0,0.00030136,2]
[325273087,1714677045607,-500.0,0.00030136,2]
[325273088,1714677045616,-500.0,0.00030136,2]
[325273089,1714677045627,-500.0,0.00030136,2]
[325273090,1714677045638,-500.0,0.00030136,2]
[325273091,1714677045648,-500.0,0.00030136,2]
[325273092,1714677045658,-500.0,0.00030136,2]
[325273093,1714677045668,-1990.4,0.00030136,2]
[325273094,1714677045677,-500.0,0.00030136,2]
[325273095,1714677045687,-500.0,0.00030136,2]
[325273098,1714677045697,-597.1,0.00030136,2]
[325273100,1714677045707,-616.03673541,0.00030136,2]
[325273101,1714677045716,-500.0,0.00030136,2]
[325273102,1714677045728,-500.0,0.00030136,2]
[325273103,1714677045738,-541.93,0.00030136,2]
[325273104,1714677045748,-500.0,0.00030136,2]
[325273105,1714677045758,-500.53261672,0.00030136,2]
[325273106,1714677045768,-500.0,0.00030136,2]
[325273107,1714677045778,-500.0,0.00030136,2]
[325273108,1714677045788,-500.0,0.00030136,2]
[325273109,1714677046089,-500.0,0.00030136,2]
[325273110,1714677046098,-500.0,0.00030136,2]
[325273111,1714677046108,-500.0,0.00030136,2]
[325273112,1714677046118,-500.0,0.00030136,2]
[325273113,1714677046128,-500.0,0.00030136,2]
[325273114,1714677046137,-500.0,0.00030136,2]
[325273115,1714677046150,-500.0,0.00030136,2]
[325273116,1714677046159,-530.75626588,0.00030136,2]
[325273117,1714677046168,-500.0,0.00030136,2]
[325273118,1714677046178,-500.0,0.00030136,2]
[325273119,1714677046187,-500.0,0.00030136,2]
[325273120,1714677046196,-500.0,0.00030136,2]
[325273121,1714677046205,-501.06552927,0.00030136,2]
[325273122,1714677046214,-500.0,0.00030136,2]
[325273123,1714677046224,-500.0,0.00030136,2]
[325273124,1714677046234,-503.28508626,0.00030136,2]
[325273125,1714677046243,-500.0,0.00030136,2]
[325273126,1714677046253,-500.0,0.00030136,2]
[325273127,1714677046262,-500.0,0.00030136,2]
[325273128,1714677046271,-500.0,0.00030136,2]
[325273129,1714677046282,-500.0,0.00030136,2]
[325273130,1714677046291,-510.3136163,0.00030136,2]
[325273131,1714677046300,-500.0,0.00030136,2]
[325273132,1714677046310,-500.0,0.00030136,2]
[325273133,1714677046319,-555.74,0.00030136,2]
[325273134,1714677046329,-500.0,0.00030136,2]
[325273135,1714677046338,-500.0,0.00030136,2]
[325273136,1714677046348,-500.0,0.00030136,2]
[325273137,1714677046357,-500.0,0.00030136,2]
[325273138,1714677046367,-500.0,0.00030136,2]
[325273139,1714677046376,-500.0,0.00030136,2]
[325273140,1714677046386,-500.0,0.00030136,2]
[325273141,1714677046397,-500.0,0.00030136,2]
[325273142,1714677046406,-500.0,0.00030136,2]
[325273143,1714677046416,-500.0,0.00030136,2]
[325273144,1714677046425,-500.0,0.00030136,2]
[325273145,1714677046435,-500.0,0.00030136,2]
[325273146,1714677046445,-500.0,0.00030136,2]
[325273147,1714677046454,-500.0,0.00030136,2]
[325273148,1714677046465,-500.0,0.00030136,2]
[325273149,1714677046476,-500.0,0.00030136,2]
[325273150,1714677046485,-500.0,0.00030136,2]
[325273151,1714677046497,-516.10047398,0.00030136,2]
[325273152,1714677046507,-500.0,0.00030136,2]
[325273153,1714677046517,-644.10686575,0.00030136,2]
[325273154,1714677046527,-500.0,0.00030136,2]
[325273155,1714677046537,-500.0,0.00030136,2]
[325273156,1714677046546,-726.77,0.00030136,2]
[325273157,1714677046556,-500.0,0.00030136,2]
[325273158,1714677046566,-500.0,0.00030136,2]
[325273159,1714677046575,-500.0,0.00030136,2]
[325273160,1714677046585,-500.0,0.00030136,2]
[325273161,1714677046594,-500.0,0.00030136,2]
[325273162,1714677046603,-500.0,0.00030136,2]
[325273163,1714677046612,-500.0,0.00030136,2]
[325273164,1714677046623,-500.0,0.00030136,2]
[325273165,1714677046632,-500.0,0.00030136,2]
[325273166,1714677046642,-500.0,0.00030136,2]
[325273167,1714677046652,-500.0,0.00030136,2]
[325273168,1714677046662,-500.0,0.00030136,2]
[325273169,1714677046672,-500.0,0.00030136,2]
[325273170,1714677046681,-500.0,0.00030136,2]
[325273171,1714677046691,-502.49270932,0.00030136,2]
[325273172,1714677046701,-500.0,0.00030136,2]
[325273173,1714677046711,-500.0,0.00030136,2]
[325273174,1714677046720,-500.0,0.00030136,2]
[325273175,1714677046730,-500.0,0.00030136,2]
[325273176,1714677046739,-500.0,0.00030136,2]
[325273177,1714677046748,-500.0,0.00030136,2]
[325273178,1714677046758,-500.0,0.00030136,2]
[325273179,1714677046767,-500.0,0.00030136,2]
[325273180,1714677046776,-500.0,0.00030136,2]
[325273181,1714677046786,-500.0,0.00030136,2]
[325273182,1714677046795,-490.42007382,0.00030136,2]
[325273183,1714677046805,-506.58292653,0.00030136,2]
[325273184,1714677046815,-500.0,0.00030136,2]
[325273185,1714677046824,-500.0,0.00030136,2]
[325273186,1714677046833,-514.28,0.00030136,2]
[325273187,1714677046842,-500.0,0.00030136,2]
[325273188,1714677046851,-500.0,0.00030136,2]
[325273189,1714677046861,-500.0,0.00030136,2]
[325273190,1714677046871,-1113.36,0.00030136,2]
[325273191,1714677046880,-500.0,0.00030136,2]
[325273192,1714677046891,-500.0,0.00030136,2]
[325273193,1714677046901,-849.04,0.00030136,2]
[325273194,1714677046911,-500.0,0.00030136,2]
[325273195,1714677046921,-615.17,0.00030136,2]
[325273196,1714677046931,-500.0,0.00030136,2]
[325273197,1714677046941,-500.0,0.00030136,2]
[325273198,1714677046950,-231.38318993,0.00030136,2]
[325273199,1714677046959,-500.0,0.00030136,2]
[325273200,1714677046970,-500.0,0.00030136,2]
[325273201,1714677046992,-500.0,0.00030136,2]
[325273202,1714677047012,-500.0,0.00030136,2]
[325273203,1714677047028,-305.30868948,0.00030136,2]
[325273204,1714677047046,-500.0,0.00030136,2]
[325273205,1714677047063,-500.0,0.00030136,2]
[325273206,1714677047081,-500.0,0.00030136,2]
[325273207,1714677047098,-500.0,0.00030136,2]
[325273208,1714677047125,-500.0,0.00030136,2]
[325273209,1714677047146,-500.0,0.00030136,2]
[325273210,1714677047167,-500.0,0.00030136,2]
[325273211,1714677047184,-500.0,0.00030136,2]
[325273212,1714677047194,-500.0,0.00030136,2]
[325273213,1714677047203,-500.0,0.00030136,2]
[325273214,1714677047213,-500.0,0.00030136,2]
[325273215,1714677047222,-500.0,0.00030136,2]
[325273216,1714677047231,-500.0,0.00030136,2]
[325273217,1714677047242,-500.0,0.00030136,2]
[325273218,1714677047251,-558.94,0.00030136,2]
[325273219,1714677047261,-500.0,0.00030136,2]
[325273220,1714677047271,-500.0,0.00030136,2]
[325273221,1714677047280,-500.0,0.00030136,2]
[325273222,1714677047290,-500.0,0.00030136,2]
[325273223,1714677047299,-500.0,0.00030136,2]
[325273224,1714677047309,-500.0,0.00030136,2]
[325273225,1714677047318,-500.0,0.00030136,2]
[325273226,1714677047328,-500.0,0.00030136,2]
[325273227,1714677047337,-272.88000804,0.00030136,2]
[325273228,1714677047347,-500.0,0.00030136,2]
[325273229,1714677047356,-500.0,0.00030136,2]
[325273230,1714677047365,-669.32,0.00030136,2]
[325273231,1714677047374,-500.0,0.00030136,2]
[325273232,1714677047383,-500.81853393,0.00030136,2]
[325273233,1714677047394,-500.0,0.00030136,2]
[325273234,1714677047403,-500.0,0.00030136,2]
[325273235,1714677047412,-555.6,0.00030136,2]
[325273236,1714677047421,-502.77871075,0.00030136,2]
[325273237,1714677047431,-500.0,0.00030136,2]
[325273238,1714677047442,-500.0,0.00030136,2]
[325273239,1714677047451,-502.99588367,0.00030136,2]
[325273240,1714677047462,-500.0,0.00030136,2]
[325273241,1714677047473,-500.0,0.00030136,2]
[325273242,1714677047484,-500.0,0.00030136,2]
[325273243,1714677047494,-505.24,0.00030136,2]
[325273244,1714677047503,-502.94336495,0.00030136,2]
[325273245,1714677047513,-500.0,0.00030136,2]
[325273246,1714677047522,-500.0,0.00030136,2]
[325273247,1714677047532,-500.0,0.00030136,2]
[325273248,1714677047541,-596.76765849,0.00030136,2]
[325273249,1714677047550,-500.0,0.00030136,2]
[325273250,1714677047559,-500.0,0.00030136,2]
[325273251,1714677047569,-500.0,0.00030136,2]
[325273252,1714677047578,-430.12382301,0.00030136,2]
[325273253,1714677047587,-500.0,0.00030136,2]
[325273254,1714677047596,-500.0,0.00030136,2]
[325273255,1714677047605,-500.0,0.00030136,2]
[325273256,1714677047615,-500.0,0.00030136,2]
[325273257,1714677047624,-501.98873834,0.00030136,2]
[325273258,1714677047633,-501.2287238,0.00030136,2]
[325273259,1714677047644,-500.0,0.00030136,2]
[325273260,1714677047653,-500.0,0.00030136,2]
[325273261,1714677047663,-500.0,0.00030136,2]
[325273262,1714677047672,-500.0,0.00030136,2]
[325273263,1714677047684,-719.98,0.00030136,2]
[325273264,1714677047693,-500.0,0.00030136,2]
[325273265,1714677047703,-500.0,0.00030136,2]
[325273266,1714677047712,-500.0,0.00030136,2]
[325273267,1714677047721,-500.0,0.00030136,2]
[325273268,1714677047731,-500.0,0.00030136,2]
[325273269,1714677047740,-500.0,0.00030136,2]
[325273270,1714677047750,-500.0,0.00030136,2]
[325273271,1714677047759,-735.16,0.00030136,2]
[325273272,1714677047768,-500.0,0.00030136,2]
[325273273,1714677047777,-779.96,0.00030136,2]
[325273274,1714677047787,-500.0,0.00030136,2]
[325273275,1714677047796,-1151.43,0.00030136,2]
[325273276,1714677047805,-500.0,0.00030136,2]
[325273277,1714677047815,-500.0,0.00030136,2]
[325273278,1714677047824,-500.0,0.00030136,2]
[325273279,1714677047833,-712.87,0.00030136,2]